Cogmind - Beta 15 @@@ ROGUE MODE // 2025.06.01 @ 15:28:40 Player: Figgis Result: Destroyed by OQ-KQA(R) with Subdweller Machine Gun Performance ------------- Evolutions (0) 0 Regions Visited (2) 400 Robots Destroyed (26) 130 Value Destroyed (554) 554 Prototype IDs (0) 0 Alien Tech Used (0) 0 Bonus (0) 0 TOTAL SCORE: 1084 Bonus ------- None Cogmind --------- Core Integrity 0/250 Matter 271/300 Energy 250/250 System Corruption 1% Temperature Cool (0) Movement Walking (190) Ox1 Location -10/Subcaves Parts ------- > --- POWER (1) -------- Ion Engine > --- PROPULSION (2) --- Aluminum Leg Aluminum Leg > --- UTILITY (2) ------ Large Storage Unit Core Shielding > --- WEAPON (2) ------- Battle Rifle Subdweller Machine Gun > --- INVENTORY (15) --- Ion Engine Aluminum Leg Subdweller Monowheel Targeting Computer Core Shielding Hacking Suite Small Laser Grenade Launcher Scrap Shield Fragment (48) Peak State ------------ > --- POWER ------------ Ion Engine > --- PROPULSION ------- Aluminum Leg Aluminum Leg > --- UTILITY ---------- Large Storage Unit Core Shielding > --- WEAPON ----------- Battle Rifle Subdweller Machine Gun > --- INVENTORY -------- Ion Engine Aluminum Leg Aluminum Leg Subdweller Monowheel Targeting Computer Core Shielding Hacking Suite Small Laser Grenade Launcher Scrap Shield Fragment [Rating: 10] Favorites ----------- Power Ion Engine Engine Ion Engine Propulsion Aluminum Leg Leg Aluminum Leg Utility Large Storage Unit Storage Large Storage Unit Protection Core Shielding Weapon Light Assault Rifle Energy Gun Small Laser Ballistic Gun Light Assault Rifle Launcher Grenade Launcher Build | -11 -10 -10 ------- Run | Yrd Mat Sub Slots Evolved . | . . . Power . | . . . Propulsion . | . . . Utility . | . . . Weapon . | . . . Parts Attached 25 | 3 16 6 Power 4 | 1 2 1 Engine 4 | 1 2 1 Core . | . . . Reactor . | . . . Propulsion 9 | 2 5 2 Treads . | . . . Leg 9 | 2 5 2 Wheel . | . . . Hover . | . . . Flight . | . . . Utility 3 | . 3 . Device . | . . . Storage 2 | . 2 . Processor . | . . . Hackware . | . . . Protection 1 | . 1 . Artifact . | . . . Weapon 9 | . 6 3 Energy Gun 2 | . 2 . Energy Cannon . | . . . Ballistic Gun 6 | . 3 3 Ballistic Cannon . | . . . Launcher 1 | . 1 . Special Weapon . | . . . Impact Weapon . | . . . Slashing Weapon . | . . . Piercing Weapon . | . . . Special Melee Weapon . | . . . Unidentified Prototypes . | . . . Parts Lost 11 | . 3 8 Power 1 | . . 1 Propulsion 5 | . 2 3 Utility . | . . . Weapon 5 | . 1 4 Highest Loss Streak 7 | . 2 7 To Critical Strikes 1 | . . 1 Average Backups 8 | 2 8 8 Power 1 | . 1 1 Propulsion 2 | . 2 2 Utility 1 | . 1 3 Weapon 2 | 1 3 1 Tool/Special . | . . . Unused Backups 8 | . 2 6 Power 3 | . 2 1 Propulsion 2 | . . 2 Utility 3 | . . 3 Weapon . | . . . Tool/Special . | . . . Average Slot Usage (%) 87 | . 84 96 Engine 13 | . 14 12 Leg 26 | . 25 26 Storage 13 | . 13 14 Protection 6 | . 3 14 Energy Gun 5 | . 4 8 Ballistic Gun 21 | . 22 18 Peak Build Rating 10 | 3 8 10 Average Rating 7 | 1 6 8 On Entrance 3 | . 3 8 Naked Turns . | . . . Heaviest Build 33 | 3 28 33 Greatest Support 20 | 3 20 20 Greatest Overweight (x) 1 | . 1 1 Average Overweight (x) . | . . 1 Largest Inventory Capacity 15 | 5 15 15 Average Capacity 11 | 5 10 15 Most Carried 13 | 5 13 13 Average Carried 8 | 3 8 9 Final Capacity 15 | 5 15 15 Final Carried 13 | 5 13 9 Class Distribution -------------------- 96% | Mutant 3% | Scavenger-Mutant Dominant Class ---------------- Mutant | -10/Materials Mutant | -10/Subcaves Resources | -11 -10 -10 ----------- Run | Yrd Mat Sub Matter Collected 632 | 193 293 146 Remotely . | . . . Salvage Created 619 | . 434 185 Parts 44 | . 35 9 Haulers Intercepted . | . . . Recyclers Shooed . | . . . Parts Field Recycled . | . . . Retrieved Matter . | . . . Parts Self-Destructed 5 | . . 5 Prevented . | . . . Kills | -11 -10 -10 ------- Run | Yrd Mat Sub Combat Hostiles Destroyed 22 | . 17 5 Guns 22 | . 17 5 Classes Destroyed 5 | . 4 1 Operator 1 | . 1 . Watcher 3 | . 3 . Swarmer 12 | . 12 . Grunt 5 | . 5 . Subdweller 5 | . . 5 Best Kill Streak 6 | . 6 2 Combat Bots Only 6 | . 6 2 Max Kills in Single Turn 2 | . 2 1 Gunslinging 1 | . 1 . Exploded . | . . . Melee . | . . . Uniques/NPCs Destroyed . | . . . Combat | -11 -10 -10 -------- Run | Yrd Mat Sub Hostile Shots Fired 162 | . 111 51 Missed 40 | . 31 9 Hits 122 | . 80 42 Projectile 122 | . 80 42 AOE 1 | . . 1 Critical Strikes 3 | . . 3 Damage Taken 1637 | . 702 935 Core 255 | . 97 158 Absorbed by Shields . | . . . Redirected to Shielding 36 | . . 36 Core Remaining (%) 100 | 100 . . Volleys Fired 84 | . 53 31 Largest 2 | . 2 2 Hottest 70 | . 60 70 Shots Fired 153 | . 103 50 Gun 150 | . 102 48 Cannon . | . . . Launcher 3 | . 1 2 Special . | . . . Kinetic 107 | . 78 29 Thermal 43 | . 24 19 Explosive 3 | . 1 2 Electromagnetic . | . . . Robot Hit Streak 25 | . 11 25 Robot Miss Streak 5 | . 5 1 Penetration Max . | . . . Secondary Targets 5 | . 4 1 Max Gunslinging Chain 1 | . 1 1 Shots Hit Robots 103 | . 58 45 Core Hits 45 | . 32 13 Critical Kills . | . . . Critical Parts Destroyed 1 | . 1 . Critical Strikes 2 | . 1 1 Destroy 2 | . 1 1 Melee Attacks . | . . . Impact . | . . . Slashing . | . . . Piercing . | . . . Sneak Attacks . | . . . Combat Hostiles . | . . . Follow-up Attacks . | . . . Damage Inflicted 1215 | . 662 553 Guns 1201 | . 648 553 Cannons . | . . . Explosions . | . . . Melee . | . . . Ramming 14 | . 14 . Kinetic 811 | . 443 368 Thermal 390 | . 205 185 Explosive . | . . . Electromagnetic . | . . . Impact . | . . . Slashing . | . . . Piercing . | . . . Highest Corruption 1 | . 1 1 Average Corruption 1 | . 1 1 Corruption Purged . | . . . Corruption Blocked . | . . . Effects 15 | . 10 5 Message Errors 3 | . 2 1 Matter Fused 4 | . 4 . Heat Flow Errors 2 | . . 2 Energy Discharges 2 | . 2 . Data Loss (minor) 1 | . . 1 Data Loss (major) 2 | . 1 1 Alerts 1 | . 1 . Overload Shots . | . . . Overflow Damage . | . . . Projectiles . | . . . Explosions . | . . . Melee . | . . . Knockbacks . | . . . Impact . | . . . Kinetic . | . . . Secondary . | . . . Self-Inflicted Damage . | . . . Shots . | . . . Rammed . | . . . Targets Rammed 4 | . 4 . Kicked 4 | . 4 . Crushed . | . . . Highest Temperature 266 | . 48 266 Average Temperature 38 | . 21 121 Received Heat Transfer 234 | . 132 102 Siege Activations . | . . . Martial Activations . | . . . Shielding Activations . | . . . Robots Disrupted . | . . . Combat Hostiles . | . . . Robots Corrupted . | . . . Combat Hostiles . | . . . Parts Fried . | . . . Impact Corruptions . | . . . Robots Melted . | . . . Combat Hostiles . | . . . Parts Melted 2 | . 1 1 Heat Transferred 850 | . 425 425 Parts Sabotaged . | . . . Parts Stolen . | . . . Parts Stripped . | . . . Power Chain Reactions . | . . . Alert | -11 -10 -10 ------- Run | Yrd Mat Sub Maximum Alert Level . | . . . Low Security (%) 100 | 100 100 . Level 1 . | . . . Level 2 . | . . . Level 3 . | . . . Level 4 . | . . . Level 5 . | . . . High Security . | . . . Max Security . | . . . Peak Influence 141 | . 141 . Initial . | . . . Average 47 | . 48 . Influence Increases 482 | . 482 . Destroy 0b10 Robot/C 340 | . 340 . Destroy 0b10 Robot/NC 20 | . 20 . Destroy Leader 66 | . 66 . Successful Hack 10 | . 10 . Destroy Structure 1 | . 1 . Lose Combat Pursuer 45 | . 45 . Influence Decreases 482 | . 482 . Time Decay 452 | . 452 . Lost Part 30 | . 30 . Squads Dispatched 2 | . 2 . Investigation . | . . . Extermination . | . . . Reinforcement 2 | . 2 . Assault . | . . . Garrison . | . . . Intercept . | . . . Searches Triggered . | . . . Construction Impeded . | . . . Haulers Reinforced . | . . . Active Scanning Responses . | . . . Cargo Convoy Interrupts . | . . . Stealth | -11 -10 -10 --------- Run | Yrd Mat Sub Distress Signals 1 | . 1 . Communications Jammed . | . . . Distress Signals . | . . . Times Spotted 38 | . 30 8 Peak Tracking Total 7 | . 7 3 Tactical Retreats 2 | . 2 . Traps | -11 -10 -10 ------- Run | Yrd Mat Sub Traps Triggered 1 | . 1 . Indirectly . | . . . Trap Hack Attempts . | . . . Triggered . | . . . Disarmed . | . . . Reprogrammed . | . . . Reused . | . . . Traps Extracted . | . . . Installed . | . . . Triggered . | . . . Machines | -11 -10 -10 ---------- Run | Yrd Mat Sub Machines Disabled . | . . . Max in Single Turn . | . . . Machines Repaired . | . . . Machines Dismantled . | . . . Machines Sabotaged . | . . . Overloaded Fab Kills . | . . . Hacking | -11 -10 -10 --------- Run | Yrd Mat Sub Machines Accessed 3 | . 3 . Terminals 3 | . 3 . Fabricators . | . . . Repair Stations . | . . . Recycling Units . | . . . Scanalyzers . | . . . Garrison Access . | . . . Total Hacks 6 | . 6 . Successful 5 | . 5 . Failed 1 | . 1 . Catastrophic . | . . . Database Lockouts . | . . . Manual 2 | . 2 . Terminals 6 | . 6 . Fabricators . | . . . Repair Stations . | . . . Recycling Units . | . . . Scanalyzers . | . . . Garrison Access . | . . . Terminal Hacks 5 | . 5 . Robot Analysis 2 | . 2 . Locate Traps 1 | . 1 . Transport Status 1 | . 1 . Registered Components 1 | . 1 . Fabricator Hacks . | . . . Repair Station Hacks . | . . . Recycling Unit Hacks . | . . . Scanalyzer . | . . . Garrison Access Hacks . | . . . Unauthorized Hacks . | . . . Terminals . | . . . Fabricators . | . . . Repair Stations . | . . . Recycling Units . | . . . Scanalyzers . | . . . Garrison Access . | . . . Data Cores Recovered . | . . . Used . | . . . Hacking Detections 1 | . 1 . Full Trace Events . | . . . Feedback Events . | . . . Feedback Blocked . | . . . Robot Schematics Acquired . | . . . Robots Built . | . . . Authchips . | . . . Time . | . . . Total Robot Build Rating . | . . . Part Schematics Acquired . | . . . Parts Built . | . . . Authchips . | . . . Time . | . . . Total Part Build Rating . | . . . Parts Repaired . | . . . Time . | . . . Parts Recycled . | . . . Recycled Matter . | . . . Retrieved Matter . | . . . Retrieved Components . | . . . Parts Scanalyzed . | . . . Part Schematics Acquired . | . . . Parts Damaged . | . . . Bothacking | -11 -10 -10 ------------ Run | Yrd Mat Sub Used RIF Installer . | . . . Robots Hacked . | . . . Non-combat . | . . . Combat . | . . . Robot Hacks Applied . | . . . Relay Couplers Released . | . . . Fabnet Peak Effective % . | . . . Robots Rewired . | . . . Allies Hacked . | . . . Hacks Repelled . | . . . Allies | -11 -10 -10 -------- Run | Yrd Mat Sub Total Allies . | . . . Largest Group . | . . . Highest-Rated Group . | . . . Highest-Rated Ally . | . . . Total Orders . | . . . Ally Attacks . | . . . Total Damage . | . . . Kills . | . . . Allies Corrupted . | . . . Allies Melted . | . . . Intel | -11 -10 -10 ------- Run | Yrd Mat Sub Active Infowar (turns) . | . . . Robot Analysis Total 2 | . 2 . Derelict Logs Recovered 1 | . . 1 Drone Launches . | . . . Drone Recoveries . | . . . Exploration | -11 -10 -10 ------------- Run | Yrd Mat Sub Turns Passed 2390 | 26 1732 632 Spaces Moved 1136 | 33 829 274 Core 168 | 33 135 . Treads . | . . . Legs 968 | . 694 274 Wheels . | . . . Hover . | . . . Flight . | . . . Fastest Speed 50 | 50 50 190 Average Speed 148 | 50 138 190 Slowest Speed 190 | 50 190 190 Overloaded Moves . | . . . Propulsion Burnouts . | . . . Robots Hopped . | . . . Potential Cave-ins . | . . . Cave-ins Triggered . | . . . Exploration Rate (%) 40 | 2 97 21 Regions Visited 2 Branch Regions 1 Pre-discovered Areas . | . . . Known Exits Taken . | . . . Unknown Exits Taken 2 | 1 1 . Scrap Searched . | . . . Spaces Dug 11 | . . 11 Terrain Destroyed 21 | . . 21 Melee . | . . . Projectile . | . . . AOE 21 | . . 21 Terrain Rammed . | . . . Walls Destroyed . | . . . Machines Disabled . | . . . Actions | -11 -10 -10 --------- Run | Yrd Mat Sub Total 1697 | 40 1319 338 Wait 412 | . 394 18 Move 1134 | 32 828 274 Hop . | . . . Pick Up 25 | 5 16 4 Fast Attach 5 | 3 2 . Attach 14 | . 6 8 Detach . | . . . Swap 11 | . 8 3 Drop 8 | . 8 . Fire 84 | . 53 31 Melee . | . . . Ram . | . . . Kick 4 | . 4 . Crush . | . . . Escape Stasis . | . . . Rewire . | . . . Trap . | . . . Miscellaneous . | . . . Route ------- -11/Scrapyard -10/Materials (discovered 6 exits: [*Mat x3] / [*Min x2] / [*Sub]) -10/Subcaves History --------- Turn | Location | Event 13 | -11/Scrapyard | Discovered new exit (range 15) 27 | -11/Scrapyard | Entered Materials 65 | -10/Materials | Discovered new exit (range 15) 311 | -10/Materials | Build established: Mutant 505 | -10/Materials | Discovered new exit (range 6) 662 | -10/Materials | Discovered new exit (range 7) 1048 | -10/Materials | Discovered new exit (range 4) 1181 | -10/Materials | Discovered new exit (range 11) 1721 | -10/Materials | Discovered new exit (range 9) 1759 | -10/Materials | Entered Subcaves 1799 | -10/Subcaves | Core integrity fell below 50% 1850 | -10/Subcaves | Lost 7 parts (1p2n4w) 1904 | -10/Subcaves | Learned location of 1 exit from Materials 2154 | -10/Subcaves | Shifting Twisted Machinery released Battle Rifle 2335 | -10/Subcaves | Ambushed by Subdweller buried in earth 2368 | -10/Subcaves | Shifting Twisted Machinery released Mak. Thermal Plating 2372 | -10/Subcaves | Shifting Twisted Machinery released Mak. Light Armor Plating 2385 | -10/Subcaves | Ambushed by Subdweller buried in earth 2386 | -10/Subcaves | Core integrity fell below 20% 2391 | -10/Subcaves | Destroyed by OQ-KQA(R) with Subdweller Machine Gun Last Messages --------------- 02029_ BZ-R1Y(R) affixes Scrap Shield Fragment to Scrap Shield. 02030_ BZ-R1Y(R) destroyed. 02033_ Acquired 10 matter. 02042_ Subatomizers dissect the Disposable Heat Sink. Battle Rifle falls loose from the Twisted Machinery. 02172_ Acquired Battle Rifle. 02225_ Acquired 10 matter. 02267_ System corrupted: Heat flow error (+112). 02285_ System corrupted: Substantial component data lost. 02336_ 4Q-CGZ(R): "ARGHSUB!" 02339_ Aluminum Leg destroyed. 02345_ 4Q-CGZ(R) destroyed. 02353_ Subatomizers dissect the Sub. Optics. 02358_ Acquired 35 matter. Mak. Thermal Plating falls loose from the Twisted Machinery. 02368_ Subatomizers dissect the Sub. Optics. Mak. Light Armor Plating falls loose from the Twisted Machinery. 02377_ Acquired 6 matter. 02386_ OQ-KQA(R): "SLEEPOVER!" 02388_ The unstable cave ceiling collapses. Map ----- +----------------------------------------------------+ | ?????????????????????????????????????????????????? | | ?????????????????????????????????????????????????? | | ?????????????????????????????????????????????????? | | ?????????????????????????????????????????????????? | | ?????????????????????????????????????????????????? | | ?????????????????????????????????????????????????? | | ?????????????????????????????????????????????????? | | ?????????????????????????????????????????????????? | | ?????????????????????????????????????????????????? | | ?????????????????????????????????????????????????? | | ?????????????????????????????????????????????????? | | ?????????????????????????????????????????????????? | | ?????????????????????????????????????????????????? | | ?????????????????????????????????????????????????? | | ?????????????????????????????????????????????????? | | ?????????????????????????????????????????????????? | | ?????????????????????????????????????????????????? | | ?????????????????????????????????????????????????? | | ?????????????????????????????????????????????????? | | ?????????????????????????????????????????????????? | | ?????????????????????????????????????????????????? | | ???????????????????????????????????##????????????? | | ??????????????????????##########?? ##???????????? | | ?????????????????????##;# ;;# ##!! #???????????? | | ????????????# R %#; ;;; ; """""##??????????? | | ?????????????# R @ " % " #?????????? | | ?????????###### # R ; ##" " #???????? | | ?????????# ##??????#;;;;;; "#### " ???????? | | ????????## ##?????## # ##"" ????????? | | ????????# #??????#### # #? % ????????? | | ????????# #?????????## ! #?? ###?????????? | | ????????## #????????##%# & ! #???#???????????? | | ????##???## ##????????# " = #???????????????? | | ???## #??## ##???####?# " %##???????????????? | | ??## ### ##?## ### #???????????????? | | ?## "" ### %####???????????????? | | ## " ## ###??????????????????? | | "" ## ### #????????????????????? | | "" ## ##?# #????????????????????? | | " % ###?## #????????????????????? | | "" ##??## ##????????????????????? | | """ #???# #????????????????????? | | """ #####???## ##????????????????????? | | #""" ## ##????#### ##????????????????????? | | ?####" #?####?????# #????????????????????? | | ????#""" ???????????# ##????????????????????? | | ????# ""#??????###### ## #????????????????????? | | ????# #???##### # ######????????????????????? | | ????######## #????????????????????????? | | ??????## """ #????????????????????????? | +----------------------------------------------------+ Best States ------------- Heat Dissipation 25 Energy Generation 10 Energy Capacity 250 Matter Stores 300 Matter Capacity 300 Sight Range 16 Terrain Scan Density 10 Core Shielding 20 Evasion (%) 55 Item Schematics ----------------- None Robot Schematics ------------------ None Fabricated ------------ Nothing Repaired ---------- Nothing Alien Tech Used ----------------- None Achievements -------------- None Challenges ------------ None Game ------ Seed SkeletonHardlightTube Manual? 0 Play Time 00:12:31 Cumulative 170.7 hours Start 2025.06.01 @ 15:18:32 End 2025.06.01 @ 15:28:40 Sessions 1 Manual Loads 0 Difficulty Rogue Special Mode None Game No. 265 Rogue 262 Adventurer 3 Explorer 0 Win Type - Total 1 Types 1/0/0/0/0/0/0/0/0/0 Lore% 58 Gallery% 57 Achievement% 45 Wizard Run 0 Options --------- Layout 0 ASCII 0 Keyboard 0 Movement Mouse Keybinds 0 Fullscreen 2 Font 18/SmallcapsGlow Map View 76x50 Zoom Use 0% Tactical HUD 1 Map Filters NONE Filters NONE Steam 1 RUN: 47fb5bf1-123e-4efe-9392-afed4f48693b